fUSD/lending_fUSD_20240822
["ID","MTS","AMOUNT","RATE_DAILY","PERIOD"]
[335548265,1724320233769,-500.0,0.00010786,2]
[335548266,1724320233778,-500.0,0.00010786,2]
[335548267,1724320233788,-546.31169112,0.00010786,2]
[335548268,1724320233797,-507.601352,0.00010786,2]
[335548269,1724320233806,-500.0,0.00010786,2]
[335548270,1724320233815,-500.0,0.00010786,2]
[335548271,1724320233825,-500.0,0.00010786,2]
[335548272,1724320233834,-500.0,0.00010786,2]
[335548273,1724320233843,-509.92727312,0.00010786,2]
[335548274,1724320233853,-500.0,0.00010786,2]
[335548275,1724320233863,-500.0,0.00010786,2]
[335548276,1724320233872,-506.54239622,0.00010786,2]
[335548277,1724320233882,-515.19852749,0.00010786,2]
[335548278,1724320233891,-504.75066522,0.00010786,2]
[335548279,1724320233901,-7317.36,0.00010786,2]
[335548280,1724320233911,-504.54401357,0.00010786,2]
[335548281,1724320233921,-507.57090709,0.00010786,2]
[335548282,1724320233930,-500.0,0.00010786,2]
[335548283,1724320233939,-506.82898196,0.00010786,2]
[335548284,1724320233949,-508.6348187,0.00010786,2]
[335548285,1724320233958,-500.0,0.00010786,2]
[335548286,1724320233968,-500.0,0.00010786,2]
[335548287,1724320233978,-500.0,0.00010786,2]
[335548288,1724320233988,-506.17099132,0.00010786,2]
[335548289,1724320233998,-500.0,0.00010786,2]
[335548290,1724320234008,-500.0,0.00010786,2]
[335548291,1724320234018,-506.14946186,0.00010786,2]
[335548292,1724320234028,-513.41438181,0.00010786,2]
[335548293,1724320234038,-513.76611186,0.00010786,2]
[335548294,1724320234049,-500.0,0.00010786,2]
[335548295,1724320234059,-514.36639192,0.00010786,2]
[335548296,1724320234069,-500.0,0.00010786,2]
[335548297,1724320234080,-542.40568226,0.00010786,2]
[335548298,1724320234091,-510.69369582,0.00010786,2]
[335548299,1724320234101,-510.53680637,0.00010786,2]
[335548300,1724320234110,-500.0,0.00010786,2]
[335548301,1724320234120,-500.0,0.00010786,2]
[335548302,1724320234129,-510.22854344,0.00010786,2]
[335548303,1724320234139,-283.7337691,0.00010786,2]
[335548304,1724320234148,-503.10481764,0.00010786,2]
[335548305,1724320234157,-509.20586716,0.00010786,2]
[335548306,1724320234167,-510.81647606,0.00010786,2]
[335548307,1724320234176,-502.62419924,0.00010786,2]
[335548308,1724320234185,-576.48130221,0.00010786,2]
[335548309,1724320234194,-611.48151352,0.00010786,2]
[335548310,1724320234204,-500.0,0.00010786,2]
[335548311,1724320234214,-521.26268799,0.00010786,2]
[335548312,1724320234223,-502.77642189,0.00010786,2]
[335548313,1724320234233,-500.0,0.00010786,2]
[335548314,1724320234243,-500.0,0.00010786,2]
[335548315,1724320234252,-503.24779264,0.00010786,2]
[335548316,1724320234262,-500.0,0.00010786,2]
[335548317,1724320234272,-500.0,0.00010786,2]
[335548318,1724320234281,-500.85551574,0.00010786,2]
[335548319,1724320234290,-230.97979081,0.00010786,2]
[335548320,1724320234300,-501.34267181,0.00010786,2]
[335548321,1724320234310,-500.0,0.00010786,2]
[335548322,1724320234319,-205.22191884,0.00010786,2]
[335548323,1724320234328,-622.00334787,0.00010786,2]
[335548324,1724320234338,-504.18314384,0.00010786,2]
[335548325,1724320234347,-500.0,0.00010786,2]
[335548326,1724320234357,-566.77424358,0.00010786,2]
[335548327,1724320234367,-500.0,0.00010786,2]
[335548328,1724320234376,-512.2585305,0.00010786,2]
[335548329,1724320234386,-500.0,0.00010786,2]
[335548330,1724320234395,-512.52970082,0.00010786,2]
[335548331,1724320234405,-500.0,0.00010786,2]
[335548332,1724320234414,-548.28946863,0.00010786,2]
[335548333,1724320234423,-518.10211275,0.00010786,2]
[335548334,1724320234433,-520.8279155,0.00010786,2]
[335548335,1724320234442,-500.0,0.00010786,2]
[335548336,1724320234452,-500.0,0.00010786,2]
[335548337,1724320234461,-500.0,0.00010786,2]
[335548338,1724320234470,-500.0,0.00010786,2]
[335548339,1724320234480,-500.0,0.00010786,2]
[335548340,1724320234490,-500.0,0.00010786,2]
[335548341,1724320234499,-591.50832663,0.00010786,2]
[335548342,1724320234508,-500.0,0.00010786,2]
[335548343,1724320234517,-150.0,0.00010786,2]
[335548344,1724320234526,-500.0,0.00010786,2]
[335548345,1724320234535,-150.0,0.00010786,2]
[335548346,1724320234545,-5000.0,0.00010786,2]
[335548347,1724320234554,-500.0,0.00010786,2]
[335548348,1724320234564,-500.0,0.00010786,2]
[335548349,1724320234573,-488.0781542,0.00010786,2]
[335548350,1724320234582,-519.08179322,0.00010787,2]
[335548351,1724320234592,-521.62190946,0.00010787,2]
[335548352,1724320234602,-498.2408691,0.00010787,2]
[335548353,1724320234611,-195.93658205,0.00010787,2]
[335548354,1724320234620,-500.0,0.00010787,2]
[335548355,1724320234630,-500.0,0.00010787,2]
[335548356,1724320234640,-500.0,0.00010787,2]
[335548357,1724320234650,-616.38039384,0.00010787,2]
[335548358,1724320234659,-514.33419314,0.00010787,2]
[335548359,1724320234668,-500.0,0.00010787,2]
[335548360,1724320234678,-500.0,0.00010787,2]
[335548361,1724320234687,-500.0,0.00010787,2]
[335548362,1724320234697,-359.63312123,0.00010787,2]
[335548363,1724320234706,-500.0,0.00010787,2]
[335548364,1724320234715,-500.0,0.00010787,2]
[335548365,1724320234725,-249.78352862,0.00010787,2]
[335548366,1724320234734,-500.0,0.00010787,2]
[335548367,1724320234743,-518.28276229,0.00010787,2]
[335548368,1724320234752,-500.0,0.00010787,2]
[335548369,1724320234762,-500.0,0.00010787,2]
[335548370,1724320234771,-500.0,0.00010787,2]
[335548371,1724320234781,-500.0,0.00010787,2]
[335548372,1724320234790,-500.0,0.00010787,2]
[335548373,1724320234799,-500.0,0.00010787,2]
[335548374,1724320234809,-500.0,0.00010787,2]
[335548375,1724320234818,-403.61257148,0.00010787,2]
[335548376,1724320234846,-107.26643335,0.00010787,2]
[335548377,1724320234855,-500.0,0.00010787,2]
[335548378,1724320234865,-500.0,0.00010787,2]
[335548379,1724320234874,-500.0,0.00010787,2]
[335548380,1724320234884,-224.50356665,0.00010787,2]
[335548381,1724320234895,-287.37906341,0.00010787,2]
[335548382,1724320234905,-77.97304265,0.00010787,2]
[335548383,1724320234920,-422.02695735,0.00010787,2]
[335548384,1724320234931,-500.0,0.00010787,2]
[335548385,1724320234944,-514.59568679,0.00010787,2]
[335548386,1724320234956,-500.0,0.00010787,2]
[335548387,1724320234969,-500.0,0.00010787,2]
[335548388,1724320234981,-500.0,0.00010787,2]
[335548389,1724320234992,-508.94144557,0.00010787,2]
[335548390,1724320235004,-500.0,0.00010787,2]
[335548391,1724320235016,-500.0,0.00010787,2]
[335548392,1724320235028,-500.0,0.00010787,2]
[335548393,1724320235039,-509.97273689,0.00010787,2]
[335548394,1724320235052,-500.0,0.00010787,2]
[335548395,1724320235064,-500.0,0.00010787,2]
[335548396,1724320235077,-500.0,0.00010787,2]
[335548397,1724320235091,-500.0,0.00010787,2]
[335548398,1724320235102,-500.0,0.00010787,2]
[335548399,1724320235115,-507.57487781,0.00010787,2]
[335548400,1724320235127,-506.78,0.00010787,2]
[335548401,1724320235139,-644.53,0.00010787,2]
[335548402,1724320235149,-500.0,0.00010787,2]
[335548403,1724320235160,-500.0,0.00010787,2]
[335548404,1724320235171,-294.14368479,0.00010787,2]
[335548405,1724320235183,-1004.04,0.00010787,2]
[335548406,1724320235195,-500.0,0.00010787,2]
[335548407,1724320235207,-505.43814368,0.00010787,2]
[335548408,1724320235218,-500.0,0.00010787,2]
[335548409,1724320235230,-500.0,0.00010787,2]
[335548410,1724320235240,-498.56763367,0.00010787,2]
[335548411,1724320235250,-500.0,0.00010787,2]
[335548412,1724320235260,-504.47162107,0.00010787,2]
[335548413,1724320235271,-507.15873826,0.00010787,2]
[335548414,1724320235282,-500.0,0.00010787,2]
[335548415,1724320235295,-500.0,0.00010787,2]
[335548416,1724320235307,-526.92861377,0.00010787,2]
[335548417,1724320235319,-500.0,0.00010787,2]
[335548418,1724320235331,-500.0,0.00010787,2]
[335548419,1724320235342,-1637.88,0.00010787,2]
[335548420,1724320235355,-521.4369706,0.00010787,2]
[335548421,1724320235368,-500.0,0.00010787,2]
[335548422,1724320235381,-500.0,0.00010787,2]
[335548423,1724320235394,-500.0,0.00010787,2]
[335548424,1724320235406,-518.083088,0.00010787,2]
[335548425,1724320235418,-500.0,0.00010787,2]
[335548426,1724320235428,-500.0,0.00010787,2]
[335548427,1724320235438,-500.0,0.00010787,2]
[335548428,1724320235448,-514.62009634,0.00010787,2]
[335548429,1724320235459,-500.0,0.00010787,2]
[335548430,1724320235471,-509.1947676,0.00010787,2]
[335548431,1724320235484,-500.0,0.00010787,2]
[335548432,1724320235496,-500.0,0.00010787,2]
[335548433,1724320235506,-500.0,0.00010787,2]
[335548434,1724320235516,-514.54728994,0.00010787,2]
[335548435,1724320235528,-500.0,0.00010787,2]
[335548436,1724320235539,-500.0,0.00010787,2]
[335548437,1724320235550,-500.0,0.00010787,2]
[335548438,1724320235562,-557.76,0.00010787,2]
[335548439,1724320235573,-500.0,0.00010787,2]
[335548440,1724320235583,-500.0,0.00010787,2]
[335548441,1724320235593,-499.2,0.00010787,2]
[335548442,1724320235604,-500.0,0.00010787,2]
[335548443,1724320235616,-500.0,0.00010787,2]
[335548444,1724320235627,-551.85,0.00010787,2]
[335548445,1724320235638,-500.0,0.00010787,2]
[335548446,1724320235650,-518.20731037,0.00010787,2]
[335548447,1724320235662,-510.30186445,0.00010787,2]
[335548448,1724320235673,-503.939568,0.00010787,2]
[335548449,1724320235685,-500.0,0.00010787,2]
[335548450,1724320235695,-500.0,0.00010787,2]
[335548451,1724320235707,-500.0,0.00010787,2]
[335548452,1724320235718,-500.0,0.00010787,2]
[335548453,1724320235729,-500.0,0.00010787,2]
[335548454,1724320235740,-500.0,0.00010787,2]
[335548455,1724320235753,-500.0,0.00010787,2]
[335548456,1724320235765,-500.0,0.00010787,2]
[335548457,1724320235778,-500.0,0.00010787,2]
[335548458,1724320235788,-500.0,0.00010787,2]
[335548459,1724320235799,-504.32957825,0.00010787,2]
[335548460,1724320235811,-500.0,0.00010787,2]
[335548461,1724320235821,-445.72391782,0.00010787,2]
[335548462,1724320236065,-4041.6921742,0.00010787,2]
[335548463,1724320236080,-2829.94390798,0.00010787,2]
[335548464,1724320236090,-295.32652946,0.00010787,2]
[335548465,1724320236164,-204.67347054,0.00010787,2]
[335548466,1724320236174,-500.0,0.00010787,2]
[335548467,1724320236183,-500.0,0.00010787,2]
[335548468,1724320236192,-566.45165276,0.00010787,2]
[335548469,1724320236202,-500.0,0.00010787,2]
[335548470,1724320236212,-500.0,0.00010787,2]
[335548471,1724320236221,-500.0,0.00010787,2]
[335548472,1724320236231,-500.0,0.00010787,2]
[335548473,1724320236240,-500.0,0.00010787,2]
[335548474,1724320236250,-500.0,0.00010787,2]
[335548475,1724320236259,-500.0,0.00010787,2]
[335548476,1724320236268,-500.0,0.00010787,2]
[335548477,1724320236278,-288.28,0.00010787,2]
[335548478,1724320236287,-388.84670689,0.00010787,2]
[335548479,1724320236296,-500.0,0.00010787,2]
[335548480,1724320236306,-500.0,0.00010787,2]
[335548481,1724320236315,-500.0,0.00010787,2]
[335548482,1724320236324,-500.0,0.00010787,2]
[335548483,1724320236334,-500.0,0.00010787,2]
[335548484,1724320236547,-500.0,0.00010787,2]
[335548485,1724320236562,-150.84526604,0.00010787,2]
[335548486,1724320236571,-5018.53665545,0.00010787,2]
[335548487,1724320236581,-500.0,0.00010789,2]
[335548488,1724320236590,-500.0,0.00010789,2]
[335548489,1724320236599,-500.0,0.00010789,2]
[335548490,1724320236609,-500.0,0.00010789,2]
[335548491,1724320236618,-500.0,0.00010789,2]
[335548492,1724320236627,-500.0,0.00010789,2]
[335548493,1724320236636,-500.0,0.00010789,2]
[335548494,1724320236645,-500.0,0.00010789,2]
[335548495,1724320236654,-500.0,0.00010789,2]
[335548496,1724320236663,-500.0,0.00010789,2]
[335548497,1724320236672,-500.0,0.00010789,2]
[335548498,1724320236681,-500.0,0.00010789,2]
[335548499,1724320236690,-500.0,0.00010789,2]
[335548500,1724320236699,-500.0,0.00010789,2]
[335548501,1724320236708,-500.0,0.00010789,2]
[335548502,1724320236717,-500.0,0.00010789,2]
[335548503,1724320236727,-500.0,0.00010789,2]
[335548504,1724320236735,-500.0,0.00010789,2]
[335548505,1724320236745,-500.0,0.00010789,2]
[335548506,1724320236755,-500.0,0.00010789,2]
[335548507,1724320236764,-500.0,0.00010789,2]
[335548508,1724320236773,-500.0,0.00010789,2]
[335548509,1724320236781,-473.52,0.00010789,2]
[335548510,1724320236792,-500.0,0.00010789,2]
[335548511,1724320236802,-500.0,0.00010789,2]
[335548512,1724320236811,-500.0,0.00010789,2]
[335548513,1724320236820,-507.09103228,0.00010789,2]
[335548514,1724320236829,-500.0,0.00010789,2]
[335548515,1724320236838,-435.78716904,0.00010789,2]
[335548516,1724320236847,-500.0,0.00010789,2]
[335548517,1724320236857,-500.0,0.00010789,2]
[335548518,1724320236866,-500.0,0.00010789,2]
[335548519,1724320236875,-500.0,0.00010789,2]
[335548520,1724320236885,-500.0,0.00010789,2]
[335548521,1724320236894,-586.96397465,0.00010789,2]
[335548522,1724320236903,-500.0,0.00010789,2]
[335548523,1724320236912,-500.0,0.00010789,2]
[335548524,1724320236921,-500.0,0.00010789,2]
[335548525,1724320236931,-500.0,0.00010789,2]
[335548526,1724320236940,-500.0,0.00010789,2]
[335548527,1724320236950,-500.0,0.00010789,2]
[335548528,1724320236959,-500.0,0.00010789,2]
[335548529,1724320236968,-500.0,0.00010789,2]
[335548530,1724320236977,-500.0,0.00010789,2]
[335548531,1724320236986,-500.0,0.00010789,2]
[335548532,1724320236996,-500.0,0.00010789,2]
[335548533,1724320237007,-500.0,0.00010789,2]
[335548534,1724320237016,-500.0,0.00010789,2]
[335548535,1724320237025,-500.0,0.00010789,2]
[335548536,1724320237034,-317.7136324,0.00010789,2]
[335548537,1724320237044,-316.45501434,0.00010789,2]
[335548538,1724320237054,-500.0,0.00010789,2]
[335548539,1724320237063,-500.0,0.00010789,2]
[335548540,1724320237072,-500.0,0.00010789,2]
[335548541,1724320237082,-644.53,0.00010789,2]
[335548542,1724320237091,-500.0,0.00010789,2]
[335548543,1724320237100,-644.53,0.00010789,2]
[335548544,1724320237109,-500.0,0.00010789,2]
[335548545,1724320237119,-644.53,0.00010789,2]
[335548546,1724320237128,-500.0,0.00010789,2]
[335548547,1724320237136,-644.53,0.00010789,2]
[335548548,1724320237146,-500.0,0.00010789,2]
[335548549,1724320237154,-295.88976158,0.00010789,2]
[335548550,1724320237165,-1004.04,0.00010789,2]
[335548551,1724320237174,-1004.04,0.00010789,2]
[335548552,1724320237183,-1004.04,0.00010789,2]
[335548553,1724320237193,-1004.04,0.00010789,2]
[335548554,1724320237202,-500.0,0.00010789,2]
[335548555,1724320237211,-500.0,0.00010789,2]
[335548556,1724320237221,-500.0,0.00010789,2]
[335548557,1724320237231,-500.0,0.00010789,2]
[335548558,1724320237240,-556.98242076,0.00010789,2]
[335548559,1724320237250,-500.0,0.00010789,2]
[335548560,1724320237259,-500.0,0.00010789,2]
[335548561,1724320237268,-500.0,0.00010789,2]
[335548562,1724320237278,-1637.88,0.00010789,2]
[335548563,1724320237289,-1637.88,0.00010789,2]
[335548564,1724320237299,-236.94470721,0.00010789,2]
[335548565,1724320237309,-1637.88,0.00010789,2]
[335548566,1724320237318,-512.68029514,0.00010789,2]
[335548567,1724320237328,-500.0,0.00010789,2]
[335548568,1724320237338,-500.0,0.00010789,2]
[335548569,1724320237348,-500.0,0.00010789,2]
[335548570,1724320237358,-500.0,0.00010789,2]
[335548571,1724320237368,-300.4,0.00010789,2]
[335548572,1724320237378,-500.0,0.00010789,2]
[335548573,1724320237388,-500.0,0.00010789,2]
[335548574,1724320237398,-500.0,0.00010789,2]
[335548575,1724320237408,-500.0,0.00010789,2]
[335548576,1724320237419,-500.0,0.00010789,2]
[335548577,1724320237428,-500.0,0.00010789,2]
[335548578,1724320237438,-500.0,0.00010789,2]
[335548579,1724320237448,-557.76,0.00010789,2]
[335548580,1724320237458,-500.0,0.00010789,2]
[335548581,1724320237467,-557.76,0.00010789,2]
[335548582,1724320237477,-557.76,0.00010789,2]
[335548583,1724320237487,-557.76,0.00010789,2]
[335548584,1724320237496,-500.0,0.00010789,2]
[335548586,1724320237506,-500.0,0.00010789,2]
[335548587,1724320237515,-500.0,0.00010789,2]
[335548588,1724320237524,-500.0,0.00010789,2]
[335548589,1724320237534,-551.85,0.00010789,2]
[335548590,1724320237543,-551.85,0.00010789,2]
[335548591,1724320237553,-551.85,0.00010789,2]
[335548592,1724320237563,-551.85,0.00010789,2]
[335548594,1724320237572,-500.0,0.00010789,2]
[335548596,1724320237582,-500.0,0.00010789,2]
[335548597,1724320237591,-500.0,0.00010789,2]
[335548598,1724320237601,-500.0,0.00010789,2]
[335548599,1724320237610,-500.0,0.00010789,2]
[335548600,1724320237619,-555.51956815,0.00010789,2]
[335548601,1724320237629,-500.0,0.00010789,2]
[335548602,1724320237639,-500.0,0.00010789,2]
[335548603,1724320237649,-155.87752197,0.00010789,2]
[335548604,1724320237658,-500.0,0.00010789,2]
[335548605,1724320237667,-500.0,0.00010789,2]
[335548606,1724320237677,-500.0,0.00010789,2]
[335548607,1724320237686,-500.0,0.00010789,2]
[335548608,1724320237696,-324.19,0.00010789,2]
[335548609,1724320237706,-500.0,0.00010789,2]
[335548610,1724320237715,-500.0,0.00010789,2]
[335548611,1724320237725,-500.0,0.00010789,2]
[335548612,1724320237735,-500.0,0.00010789,2]
[335548613,1724320237744,-500.0,0.00010789,2]
[335548614,1724320237753,-500.0,0.00010789,2]
[335548615,1724320237763,-500.0,0.00010789,2]
[335548616,1724320237772,-500.0,0.00010789,2]
[335548617,1724320237781,-500.0,0.00010789,2]
[335548618,1724320237791,-328.08556182,0.00010789,2]
[335548619,1724320237800,-500.0,0.00010789,2]
[335548620,1724320237810,-500.0,0.00010789,2]
[335548621,1724320237819,-500.0,0.00010789,2]
[335548622,1724320237829,-500.0,0.00010789,2]
[335548623,1724320237838,-500.0,0.00010789,2]
[335548624,1724320237848,-500.0,0.00010789,2]
[335548625,1724320237857,-500.0,0.00010789,2]
[335548626,1724320237866,-500.0,0.00010789,2]
[335548627,1724320237876,-500.0,0.00010789,2]
[335548628,1724320237886,-500.0,0.00010789,2]
[335548629,1724320237895,-500.0,0.00010789,2]
[335548630,1724320237904,-500.0,0.00010789,2]
[335548631,1724320237913,-500.0,0.00010789,2]
[335548632,1724320237922,-500.0,0.00010789,2]
[335548633,1724320237932,-503.99488551,0.00010789,2]
[335548634,1724320237943,-500.0,0.00010789,2]
[335548635,1724320237952,-500.0,0.00010789,2]
[335548636,1724320237961,-500.0,0.00010789,2]
[335548637,1724320237971,-500.0,0.00010789,2]
[335548639,1724320237981,-500.0,0.00010789,2]
[335548641,1724320237991,-500.0,0.00010789,2]
[335548643,1724320238004,-500.0,0.00010789,2]
[335548645,1724320238013,-500.0,0.00010789,2]
[335548647,1724320238022,-500.0,0.00010789,2]
[335548648,1724320238032,-500.0,0.00010789,2]
[335548651,1724320238043,-500.0,0.00010789,2]
[335548653,1724320238054,-500.0,0.00010789,2]
[335548655,1724320238063,-500.0,0.00010789,2]
[335548656,1724320238072,-500.0,0.00010789,2]
[335548658,1724320238082,-500.0,0.00010789,2]
[335548660,1724320238092,-500.0,0.00010789,2]
[335548662,1724320238102,-500.0,0.00010789,2]
[335548664,1724320238111,-500.0,0.00010789,2]
[335548666,1724320238121,-500.0,0.00010789,2]
[335548668,1724320238130,-500.0,0.00010789,2]
[335548670,1724320238140,-500.0,0.00010789,2]
[335548672,1724320238149,-500.0,0.00010789,2]
[335548674,1724320238159,-500.0,0.00010789,2]
[335548676,1724320238169,-500.0,0.00010789,2]
[335548678,1724320238178,-500.0,0.00010789,2]
[335548680,1724320238188,-500.0,0.00010789,2]
[335548682,1724320238197,-500.0,0.00010789,2]
[335548684,1724320238206,-500.0,0.00010789,2]
[335548686,1724320238216,-500.0,0.00010789,2]
[335548688,1724320238225,-500.0,0.00010789,2]
[335548690,1724320238234,-500.0,0.00010789,2]
[335548692,1724320238244,-268.18,0.00010789,2]
[335548694,1724320238253,-500.0,0.00010789,2]
[335548696,1724320238263,-335.16747654,0.00010789,2]
[335548698,1724320238278,-164.83252346,0.00010789,2]
[335548700,1724320238288,-500.0,0.00010789,2]
[335548702,1724320238298,-54.59167204,0.00010789,2]
[335548727,1724320238544,-445.40832796,0.00010789,2]
[335548729,1724320238554,-500.0,0.00010789,2]
[335548731,1724320238563,-500.0,0.00010789,2]
[335548733,1724320238573,-500.0,0.00010789,2]
[335548735,1724320238583,-500.0,0.00010789,2]
[335548737,1724320238604,-500.0,0.00010789,2]
[335548739,1724320238613,-500.0,0.00010789,2]
[335548741,1724320238623,-500.0,0.00010797,2]
[335548743,1724320238632,-500.0,0.00010797,2]
[335548745,1724320238643,-500.0,0.00010797,2]
[335548747,1724320238653,-500.0,0.00010797,2]
[335548749,1724320238663,-506.78,0.00010797,2]
[335548751,1724320238673,-1637.88,0.00010797,2]
[335548753,1724320238682,-500.0,0.00010797,2]
[335548755,1724320238691,-500.0,0.00010797,2]
[335548757,1724320238701,-7317.36,0.00010797,2]
[335548759,1724320238710,-500.0,0.00010797,2]
[335548761,1724320238720,-494.49961693,0.00010798,2]
[335548763,1724320238729,-500.0,0.00010798,2]
[335548765,1724320238738,-505.89279921,0.00010798,2]
[335548767,1724320238748,-500.0,0.00010798,2]
[335548769,1724320238758,-500.0,0.00010798,2]
[335548771,1724320238768,-500.0,0.00010798,2]
[335548773,1724320238778,-500.0,0.00010798,2]
[335548775,1724320238787,-500.0,0.00010798,2]
[335548777,1724320238797,-644.53,0.00010798,2]
[335548779,1724320238808,-500.0,0.00010798,2]
[335548780,1724320238818,-1004.04,0.00010798,2]
[335548782,1724320238827,-500.0,0.00010798,2]
[335548784,1724320238838,-500.0,0.00010798,2]
[335548786,1724320238848,-500.0,0.00010798,2]
[335548788,1724320238858,-500.0,0.00010798,2]
[335548790,1724320238868,-557.76,0.00010798,2]
[335548792,1724320238877,-500.0,0.00010798,2]
[335548794,1724320238887,-551.85,0.00010798,2]
[335548796,1724320238896,-500.0,0.00010798,2]
[335548798,1724320238906,-500.0,0.00010798,2]
[335548800,1724320238916,-500.0,0.00010798,2]
[335548801,1724320238925,-500.0,0.00010798,2]
[335548802,1724320238934,-500.0,0.00010798,2]
[335548804,1724320238943,-500.0,0.00010798,2]
[335548806,1724320238954,-500.0,0.00010798,2]
[335548808,1724320238964,-500.0,0.00010798,2]
[335548810,1724320238974,-565.34925891,0.00010798,2]
[335548811,1724320238983,-500.0,0.00010798,2]
[335548813,1724320238994,-338.1127133,0.00010798,2]
[335548815,1724320239008,-500.0,0.00010798,2]
[335548817,1724320239017,-500.0,0.00010798,2]
[335548819,1724320239026,-500.0,0.00010799,2]
[335548821,1724320239036,-401.85092769,0.000108,2]
[335548822,1724320239046,-1000.0,0.000108,3]
[335548824,1724320239055,-1500.0,0.00010826,2]
[335548826,1724320239065,-1000.0,0.00010838,2]
[335548827,1724320239076,-232.83,0.00010855,2]
[335548828,1724320239085,-500.0,0.00010887,2]
[335548829,1724320239095,-500.0,0.00010887,2]
[335548830,1724320239104,-500.0,0.00010887,2]
[335548831,1724320239114,-500.0,0.00010887,2]
[335548832,1724320239124,-500.0,0.00010887,2]
[335548833,1724320239133,-1923.0,0.00010888,2]
[335548834,1724320239143,-1538.0,0.00010888,2]
[335548835,1724320239152,-810.0,0.00010888,2]
[335548836,1724320239162,-1138.0,0.00010888,2]
[335548837,1724320239172,-447.0,0.00010888,2]
[335548838,1724320239181,-556.0,0.00010888,2]
[335548839,1724320239191,-552.0,0.00010888,2]
[335548840,1724320239201,-1195.072,0.00010888,2]
[335548841,1724320239211,-746.346,0.00010888,2]
[335548842,1724320239220,-248.0,0.00010888,2]
[335548843,1724320239229,-289.0,0.00010888,2]
[335548844,1724320239239,-5847.0,0.00010888,2]
[335548845,1724320239248,-1674.0,0.00010888,2]
[335548846,1724320239258,-21779.0,0.00010888,2]
[335548847,1724320239268,-1205.0,0.00010888,2]
[335548848,1724320239278,-3728.0,0.00010888,2]
[335548849,1724320239287,-2065.87213,0.0001089,2]
[335548850,1724320239297,-512.72019683,0.0001089,2]
[335548851,1724320239307,-1637.88,0.00010897,2]
[335548852,1724320239317,-500.0,0.00010897,2]
[335548853,1724320239326,-500.0,0.00010897,2]
[335548854,1724320239336,-150.0,0.00010897,2]
[335548855,1724320239345,-499.20299905,0.00010897,2]
[335548856,1724320239355,-500.0,0.00010897,2]
[335548857,1724320239364,-500.0,0.00010898,2]
[335548858,1724320239373,-500.0,0.00010898,2]
[335548859,1724320239383,-500.0,0.00010898,2]
[335548860,1724320239393,-500.0,0.00010898,2]
[335548861,1724320239402,-500.0,0.00010898,2]
[335548862,1724320239413,-500.0,0.00010898,2]
[335548863,1724320239422,-257.04,0.00010898,2]
[335548864,1724320239432,-500.0,0.00010898,2]
[335548865,1724320239442,-500.0,0.00010898,2]
[335548866,1724320239451,-500.0,0.00010898,2]
[335548867,1724320239460,-506.78,0.00010898,2]
[335548868,1724320239470,-644.53,0.00010898,2]
[335548869,1724320239480,-500.0,0.00010898,2]
[335548870,1724320239490,-1004.04,0.00010898,2]